fUSD/lending_fUSD_20250514
["ID","MTS","AMOUNT","RATE_DAILY","PERIOD"]
[361100409,1747254645549,-500.0,0.00011465,2]
[361100410,1747254645558,-400.0,0.00011465,2]
[361100411,1747254645572,-400.0,0.00011465,2]
[361100412,1747254645582,-500.0,0.00011465,2]
[361100413,1747254645592,-579.13,0.00011465,2]
[361100414,1747254645601,-400.0,0.00011465,2]
[361100415,1747254645611,-400.0,0.00011465,2]
[361100416,1747254645621,-3848.86,0.00011465,2]
[361100417,1747254645630,-400.0,0.00011465,2]
[361100418,1747254645639,-400.0,0.00011465,2]
[361100419,1747254645648,-749.39,0.00011465,2]
[361100420,1747254645658,-400.0,0.00011465,2]
[361100421,1747254645668,-400.0,0.00011465,2]
[361100422,1747254645678,-344.57325359,0.00011465,2]
[361100423,1747254645687,-550.43,0.00011465,2]
[361100424,1747254645696,-400.0,0.00011465,2]
[361100425,1747254645706,-269.83263495,0.00011465,2]
[361100426,1747254645775,-400.0,0.00011465,2]
[361100427,1747254645785,-428.11,0.00011465,2]
[361100428,1747254645795,-400.0,0.00011465,2]
[361100429,1747254645804,-400.0,0.00011465,2]
[361100430,1747254645813,-403.9,0.00011465,2]
[361100432,1747254645822,-398.0304544,0.00011465,2]
[361100433,1747254645831,-400.0,0.00011465,2]
[361100435,1747254645841,-450.2,0.00011465,2]
[361100436,1747254645850,-400.0,0.00011465,2]
[361100438,1747254645860,-400.0,0.00011465,2]
[361100439,1747254645869,-491.97,0.00011465,2]
[361100440,1747254645878,-400.0,0.00011465,2]
[361100442,1747254645887,-400.0,0.00011465,2]
[361100444,1747254645896,-400.0,0.00011465,2]
[361100446,1747254645906,-400.0,0.00011465,2]
[361100448,1747254645915,-400.0,0.00011465,2]
[361100449,1747254645925,-400.0,0.00011465,2]
[361100450,1747254645934,-400.0,0.00011465,2]
[361100451,1747254645943,-500.0,0.00011465,2]
[361100452,1747254645953,-450.0,0.00011465,2]
[361100453,1747254645961,-400.0,0.00011465,2]
[361100454,1747254645971,-400.0,0.00011465,2]
[361100455,1747254645980,-400.0,0.00011465,2]
[361100456,1747254645991,-400.0,0.00011465,2]
[361100457,1747254646000,-400.0,0.00011465,2]
[361100458,1747254646011,-1425.91,0.00011465,2]
[361100459,1747254646019,-400.0,0.00011465,2]
[361100460,1747254646029,-400.0,0.00011465,2]
[361100461,1747254646038,-450.0,0.00011465,2]
[361100462,1747254646047,-400.0,0.00011465,2]
[361100463,1747254646057,-2550.66,0.00011465,2]
[361100464,1747254646066,-1241.79,0.00011465,2]
[361100465,1747254646075,-450.0,0.00011465,2]
[361100466,1747254646085,-400.0,0.00011465,2]
[361100467,1747254646094,-450.0,0.00011465,2]
[361100468,1747254646104,-400.0,0.00011465,2]
[361100469,1747254646113,-400.0,0.00011465,2]
[361100470,1747254646123,-400.0,0.00011465,2]
[361100471,1747254646133,-400.0,0.00011465,2]
[361100472,1747254646143,-1104.28,0.00011465,2]
[361100473,1747254646153,-1175.77,0.00011465,2]
[361100474,1747254646162,-400.0,0.00011465,2]
[361100475,1747254646172,-400.0,0.00011465,2]
[361100476,1747254646181,-450.0,0.00011465,2]
[361100477,1747254646190,-400.0,0.00011465,2]
[361100478,1747254646201,-6906.35,0.00011465,2]
[361100479,1747254646211,-400.0,0.00011465,2]
[361100480,1747254646220,-1474.23,0.00011465,2]
[361100481,1747254646229,-450.0,0.00011465,2]
[361100482,1747254646239,-405.87728089,0.00011465,2]
[361100483,1747254646249,-400.0,0.00011465,2]
[361100484,1747254646259,-400.0,0.00011465,2]
[361100485,1747254646268,-447.96,0.00011465,2]
[361100486,1747254646278,-400.0,0.00011465,2]
[361100487,1747254646287,-403.35513461,0.00011465,2]
[361100488,1747254646298,-913.09,0.00011465,2]
[361100489,1747254646308,-400.0,0.00011465,2]
[361100490,1747254646318,-400.0,0.00011465,2]
[361100491,1747254646328,-6831.32,0.00011465,2]
[361100492,1747254646338,-1141.02,0.00011465,2]
[361100493,1747254646349,-400.0,0.00011465,2]
[361100494,1747254646359,-1344.83,0.00011465,2]
[361100495,1747254646369,-400.0,0.00011465,2]
[361100496,1747254646378,-1805.96,0.00011465,2]
[361100497,1747254646388,-450.0,0.00011465,2]
[361100498,1747254646397,-448.53,0.00011465,2]
[361100500,1747254646407,-400.0,0.00011465,2]
[361100502,1747254646418,-400.0,0.00011465,2]
[361100503,1747254646427,-400.0,0.00011465,2]
[361100504,1747254646438,-390.11,0.00011465,2]
[361100505,1747254646448,-1913.86,0.00011465,2]
[361100507,1747254646457,-400.0,0.00011465,2]
[361100508,1747254646467,-854.87,0.00011465,2]
[361100509,1747254646475,-400.0,0.00011465,2]
[361100510,1747254646485,-400.0,0.00011465,2]
[361100511,1747254646495,-400.0,0.00011465,2]
[361100512,1747254646505,-400.0,0.00011465,2]
[361100513,1747254646515,-400.0,0.00011465,2]
[361100514,1747254646525,-790.54,0.00011465,2]
[361100515,1747254646536,-709.85,0.00011465,2]
[361100516,1747254646546,-400.0,0.00011465,2]
[361100517,1747254646559,-400.0,0.00011465,2]
[361100518,1747254646571,-993.8,0.00011465,2]
[361100519,1747254646582,-400.0,0.00011465,2]
[361100520,1747254646592,-905.37,0.00011465,2]
[361100521,1747254646602,-450.0,0.00011465,2]
[361100522,1747254646611,-1036.23,0.00011465,2]
[361100523,1747254646622,-404.71,0.00011465,2]
[361100524,1747254646633,-2542.66,0.00011465,2]
[361100525,1747254646643,-400.0,0.00011465,2]
[361100526,1747254646653,-450.0,0.00011465,2]
[361100527,1747254646663,-4468.4,0.00011465,2]
[361100528,1747254646674,-400.0,0.00011465,2]
[361100529,1747254646683,-400.0,0.00011465,2]
[361100530,1747254646693,-975.33,0.00011465,2]
[361100531,1747254646702,-400.0,0.00011465,2]
[361100532,1747254646712,-400.0,0.00011465,2]
[361100533,1747254646722,-697.93,0.00011465,2]
[361100534,1747254646731,-611.17,0.00011465,2]
[361100535,1747254646741,-400.0,0.00011465,2]
[361100536,1747254646751,-868.58,0.00011465,2]
[361100537,1747254646760,-1654.0,0.00011465,2]
[361100538,1747254646770,-451.38,0.00011465,2]
[361100539,1747254646779,-400.0,0.00011465,2]
[361100540,1747254646788,-400.0,0.00011465,2]
[361100541,1747254646798,-4433.68,0.00011465,2]
[361100542,1747254646807,-628.04,0.00011465,2]
[361100543,1747254646817,-400.0,0.00011465,2]
[361100544,1747254646826,-400.0,0.00011465,2]
[361100545,1747254646835,-450.0,0.00011465,2]
[361100546,1747254646844,-400.0,0.00011465,2]
[361100547,1747254646854,-400.0,0.00011465,2]
[361100548,1747254646863,-5069.77,0.00011465,2]
[361100549,1747254646872,-495.42,0.00011465,2]
[361100550,1747254646882,-500.0,0.00011465,2]
[361100551,1747254646891,-400.0,0.00011465,2]
[361100552,1747254646902,-400.0,0.00011465,2]
[361100553,1747254646912,-400.0,0.00011465,2]
[361100554,1747254646921,-400.0,0.00011465,2]
[361100555,1747254646931,-400.0,0.00011465,2]
[361100556,1747254646940,-484.29,0.00011465,2]
[361100557,1747254646951,-425.64,0.00011465,2]
[361100558,1747254646960,-640.08,0.00011465,2]
[361100559,1747254646971,-18175.74,0.00011465,2]
[361100560,1747254646980,-474.65,0.00011465,2]
[361100561,1747254646989,-400.0,0.00011465,2]
[361100562,1747254646999,-400.0,0.00011465,2]
[361100563,1747254647008,-400.0,0.00011465,2]
[361100564,1747254647018,-567.4,0.00011465,2]
[361100565,1747254647027,-1151.13,0.00011465,2]
[361100566,1747254647037,-766.63,0.00011465,2]
[361100567,1747254647046,-311.37229277,0.00011465,2]
[361100568,1747254647055,-650.37,0.00011465,2]
[361100569,1747254647064,-400.0,0.00011465,2]
[361100570,1747254647072,-400.0,0.00011465,2]
[361100571,1747254647080,-450.0,0.00011465,2]
[361100572,1747254647088,-3945.72,0.00011465,2]
[361100573,1747254647097,-417.79,0.00011465,2]
[361100574,1747254647106,-400.0,0.00011465,2]
[361100575,1747254647115,-591.84,0.00011465,2]
[361100576,1747254647124,-1034.08,0.00011465,2]
[361100577,1747254647134,-1233.48,0.00011465,2]
[361100578,1747254647143,-599.53,0.00011465,2]
[361100579,1747254647152,-400.0,0.00011465,2]
[361100580,1747254647161,-400.0,0.00011465,2]
[361100581,1747254647171,-11523.1,0.00011465,2]
[361100582,1747254647180,-400.0,0.00011465,2]
[361100583,1747254647189,-400.0,0.00011465,2]
[361100584,1747254647198,-345.43,0.00011465,2]
[361100585,1747254647207,-825.49,0.00011465,2]
[361100586,1747254647217,-400.0,0.00011465,2]
[361100587,1747254647226,-413.47,0.00011465,2]
[361100588,1747254647235,-400.0,0.00011465,2]
[361100589,1747254647245,-606.03,0.00011465,2]
[361100590,1747254647254,-6910.44068049,0.00011465,2]
[361100591,1747254647274,-513.54736,0.00011465,2]
[361100592,1747254647298,-3730.22250696,0.00011465,2]
[361100593,1747254647777,-1379.73856554,0.00011099,2]
[361100594,1747254647789,-542.85,0.00011099,2]
[361100595,1747254647800,-975.41399835,0.00011099,2]
[361100596,1747254647827,-2502.27127473,0.00011099,2]
[361100597,1747254647837,-400.0,0.0001119,2]
[361100598,1747254647847,-879.0,0.00011392,2]
[361100599,1747254647857,-65521.65945255,0.00011465,2]
[361100600,1747254647866,-400.0,0.00011465,2]
[361100601,1747254647876,-635.17,0.00011465,2]
[361100602,1747254647886,-150.76,0.00011465,2]
[361100603,1747254647895,-400.0,0.00011465,2]
[361100604,1747254647905,-400.0,0.00011465,2]
[361100605,1747254647915,-906.53,0.00011465,2]
[361100606,1747254647924,-1056.56608069,0.00011465,2]
[361100607,1747254647935,-9.23391931,0.00011465,2]
[361100608,1747254647944,-400.0,0.00011465,2]
[361100609,1747254647954,-717.63,0.00011465,2]
[361100610,1747254647963,-503.51,0.00011465,2]
[361100611,1747254647973,-119.62608069,0.00011465,2]
[361100612,1747254647985,-310.72391931,0.00011465,2]
[361100613,1747254647994,-400.0,0.00011465,2]
[361100614,1747254648003,-400.0,0.00011465,2]
[361100615,1747254648013,-685.38523049,0.00011465,2]
[361100616,1747254648025,-1014.42476951,0.00011465,2]
[361100617,1747254648035,-478.35,0.00011465,2]
[361100618,1747254648045,-400.0,0.00011465,2]
[361100619,1747254648054,-400.0,0.00011465,2]
[361100620,1747254648063,-225.14807999,0.00011465,2]
[361100621,1747254725410,450.0,0.0001,2]
[361100625,1747254955674,8182.26046504,0.0001,2]
[361100626,1747254999249,150.0,0.00010548,7]
[361100628,1747255151326,599.88,8.585e-05,2]
[361100637,1747255760130,-1000.0,0.00010361,2]
[361100638,1747255760153,-200.0,0.00010426,2]
[361100639,1747255760173,-500.0,0.00010491,2]
[361100640,1747255760199,-200.0,0.0001067,2]
[361100641,1747255760222,-599.88,0.00010849,2]
[361100642,1747255760246,-200.0,0.00010855,2]
[361100643,1747255760271,-300.0,0.000109,3]
[361100644,1747255760297,-1200.0,0.00011089,2]
[361100645,1747255760322,-189.96124966,0.00011089,2]
[361100646,1747255760347,-300.0,0.00011089,2]
[361100647,1747255760371,-45310.15875034,0.0001109,2]
[361100648,1747255778734,-10000.0,0.0001109,2]
[361100670,1747255832172,-328.48,0.00010488,2]
[361100672,1747255832182,-174.18560116,0.00011089,2]
[361100673,1747255832228,-325.81439884,0.00011089,2]
[361100674,1747255832238,-229.9634074,0.00011089,2]
[361100675,1747255832247,-49.92238896,0.00011089,2]
[361100676,1747255832283,-202.11729324,0.00011089,2]
[361100677,1747255832293,-1200.0,0.00011089,2]
[361100678,1747255832302,-300.0,0.00011089,2]
[361100679,1747255832311,-200.0,0.00011089,2]
[361100680,1747255832320,-166.32302676,0.0001109,2]
[361100681,1747255832346,-298.1025574,0.0001109,2]
[361100682,1747255832357,-701.38004785,0.0001109,2]
[361100797,1747255838297,-1479.81197628,0.0001109,2]
[361100816,1747255840519,-10000.0,0.0001109,2]
[361100817,1747255840545,-429.59223408,0.0001109,2]
[361100818,1747255840556,-322.59943185,0.0001109,2]
[361100819,1747255840569,-7686.12277189,0.0001109,2]
[361100844,1747255843389,-441.18848038,0.0001109,2]
[361100846,1747255843444,-14859.62580847,0.0001109,2]
[361100847,1747255843454,-437.87933235,0.0001109,2]
[361100849,1747255843463,-16607.7485,0.0001109,2]
[361100852,1747255843473,-200.0,0.0001109,2]
[361100853,1747255843483,-6991.1848,0.00011091,2]
[361100854,1747255843492,-3804.0731,0.00011091,2]
[361100855,1747255843501,-250.0,0.00011091,2]
[361100856,1747255843511,-5618.10573706,0.00011099,2]
[361100857,1747255843520,-3380.93652195,0.00011099,2]
[361100858,1747255843530,-864.05076374,0.00011105,2]
[361100859,1747255843540,-500.0,0.00011173,2]
[361100860,1747255843549,-500.0,0.00011173,2]
[361100861,1747255843559,-207.4,0.00011182,2]
[361100862,1747255843569,-151.0,0.00011183,2]
[361100863,1747255843579,-151.0,0.00011183,2]
[361100864,1747255843589,-668.65185757,0.00011183,2]
[361100865,1747255843599,-151.0,0.00011183,2]
[361100866,1747255843609,-400.0,0.00011188,2]
[361100867,1747255843619,-516.28,0.00011188,2]
[361100868,1747255843628,-400.0,0.00011188,2]
[361100869,1747255843638,-400.0,0.00011188,2]
[361100870,1747255843648,-400.0,0.00011188,2]
[361100871,1747255843657,-561.47,0.00011188,2]
[361100872,1747255843667,-513.91,0.00011188,2]
[361100873,1747255843677,-175.23562028,0.00011188,2]
[361100874,1747255843687,-400.0,0.00011188,2]
[361100875,1747255843697,-400.0,0.00011188,2]
[361100876,1747255843707,-864.4,0.00011188,2]
[361100877,1747255843717,-400.0,0.00011188,2]
[361100879,1747255843726,-3040.53,0.00011188,2]
[361100881,1747255843736,-400.0,0.00011188,2]
[361100882,1747255843745,-636.35,0.00011188,2]
[361100883,1747255843755,-5499.66,0.00011188,2]
[361100885,1747255843764,-571.66,0.00011188,2]
[361100886,1747255843774,-436.14,0.00011188,2]
[361100888,1747255843784,-722.42,0.00011188,2]
[361100889,1747255843793,-485.34,0.00011188,2]
[361100891,1747255843804,-400.0,0.00011188,2]
[361100892,1747255843814,-400.0,0.00011188,2]
[361100893,1747255843823,-157.796369,0.00011188,2]
[361100894,1747255843833,-519.14,0.00011188,2]
[361100895,1747255843844,-1052.42,0.00011188,2]
[361100896,1747255843854,-547.4,0.00011188,2]
[361100897,1747255843863,-434.94,0.00011188,2]
[361100898,1747255843873,-3528.12,0.00011188,2]
[361100899,1747255843883,-400.0,0.00011188,2]
[361100900,1747255843892,-273.92,0.00011188,2]
[361100901,1747255843902,-157.485754,0.00011188,2]
[361100902,1747255843912,-400.0,0.00011188,2]
[361100903,1747255843923,-400.0,0.00011188,2]
[361100904,1747255843933,-400.0,0.00011188,2]
[361100905,1747255843943,-400.0,0.00011188,2]
[361100906,1747255843952,-842.91,0.00011188,2]
[361100907,1747255843961,-729.97,0.00011188,2]
[361100908,1747255843971,-412.68,0.00011188,2]
[361100909,1747255843981,-400.0,0.00011188,2]
[361100910,1747255843991,-594.56,0.00011189,2]
[361100911,1747255844000,-400.0,0.00011189,2]
[361100912,1747255844010,-400.0,0.00011189,2]
[361100913,1747255844020,-516.22,0.00011189,2]
[361100914,1747255844030,-400.0,0.00011189,2]
[361100915,1747255844039,-400.0,0.00011189,2]
[361100916,1747255844049,-530.81,0.00011189,2]
[361100917,1747255844058,-400.0,0.00011189,2]
[361100918,1747255844067,-400.0,0.00011189,2]
[361100919,1747255844077,-458.45,0.00011189,2]
[361100920,1747255844088,-853.35,0.00011189,2]
[361100921,1747255844098,-299.99,0.00011189,2]
[361100922,1747255844107,-400.0,0.00011189,2]
[361100923,1747255844117,-456.59,0.00011189,2]
[361100924,1747255844126,-413.79,0.00011189,2]
[361100925,1747255844136,-536.46,0.00011189,2]
[361100926,1747255844145,-400.0,0.00011189,2]
[361100927,1747255844154,-646.79,0.00011189,2]
[361100928,1747255844164,-494.40691826,0.00011189,2]
[361100929,1747255844173,-433.73,0.00011189,2]
[361100930,1747255844183,-400.0,0.00011189,2]
[361100931,1747255844192,-400.0,0.00011189,2]
[361100932,1747255844202,-588.64,0.00011189,2]
[361100933,1747255844211,-400.0,0.00011189,2]
[361100934,1747255844221,-560.83,0.00011189,2]
[361100935,1747255844230,-400.0,0.00011189,2]
[361100936,1747255844479,-400.0,0.00011189,2]
[361100937,1747255844489,-1648.6,0.00011189,2]
[361100938,1747255844499,-400.0,0.00011189,2]
[361100939,1747255844509,-400.0,0.00011189,2]
[361100940,1747255844518,-351.91392389,0.00011189,2]
[361100941,1747255844528,-791.5,0.00011189,2]
[361100942,1747255844539,-427.39,0.00011189,2]
[361100943,1747255844549,-150.0,0.00011189,2]
[361100944,1747255844559,-400.0,0.00011189,2]
[361100945,1747255844569,-400.0,0.00011189,2]
[361100946,1747255844579,-400.0,0.00011189,2]
[361100947,1747255844589,-400.0,0.00011189,2]
[361100948,1747255844598,-400.0,0.00011189,2]
[361100949,1747255844608,-400.0,0.00011189,2]
[361100950,1747255844618,-401.68,0.00011189,2]
[361100951,1747255844628,-400.0,0.00011189,2]
[361100952,1747255844638,-400.0,0.00011189,2]
[361100953,1747255844649,-513.44,0.00011189,2]
[361100954,1747255844659,-423.71605396,0.00011189,2]
[361100955,1747255844670,-238.99,0.00011189,2]
[361100956,1747255844679,-400.0,0.00011189,2]
[361100957,1747255844689,-400.0,0.00011189,2]
[361100958,1747255844699,-192.54329284,0.00011189,2]
[361100959,1747255844709,-400.0,0.00011189,2]
[361100960,1747255844718,-400.0,0.00011189,2]
[361100961,1747255844728,-400.0,0.00011189,2]
[361100962,1747255844738,-461.2,0.00011189,2]
[361100963,1747255844747,-400.0,0.00011189,2]
[361100964,1747255844757,-450.89,0.00011189,2]
[361100965,1747255844766,-400.0,0.00011189,2]
[361100966,1747255844776,-500.0,0.00011189,2]
[361100967,1747255844786,-497.32,0.00011189,2]
[361100968,1747255844795,-500.0,0.00011189,2]
[361100969,1747255844805,-400.0,0.00011189,2]
[361100970,1747255844815,-400.0,0.00011189,2]
[361100971,1747255844825,-400.0,0.00011189,2]
[361100972,1747255844837,-500.0,0.00011189,2]
[361100973,1747255844846,-400.0,0.00011189,2]
[361100974,1747255844855,-500.0,0.00011189,2]
[361100975,1747255844866,-400.0,0.00011189,2]
[361100976,1747255844875,-400.0,0.00011189,2]
[361100977,1747255844884,-400.0,0.00011189,2]
[361100978,1747255844894,-152.43361022,0.00011189,2]
[361100979,1747255844903,-500.0,0.00011189,2]
[361100980,1747255844912,-500.0,0.00011189,2]
[361100981,1747255844922,-500.0,0.00011189,2]
[361100982,1747255844931,-400.0,0.00011189,2]
[361100983,1747255844944,-400.0,0.00011189,2]
[361100984,1747255844954,-1379.61,0.00011189,2]
[361100985,1747255844963,-400.0,0.00011189,2]
[361100986,1747255844972,-400.0,0.00011189,2]
[361100987,1747255844982,-400.0,0.00011189,2]
[361100988,1747255844991,-726.28,0.00011189,2]
[361100989,1747255845001,-400.0,0.00011189,2]
[361100990,1747255845011,-500.0,0.00011189,2]
[361100991,1747255845020,-844.82,0.00011189,2]
[361100992,1747255845029,-400.0,0.00011189,2]
[361100993,1747255845039,-400.0,0.00011189,2]
[361100994,1747255845048,-400.0,0.00011189,2]
[361100995,1747255845057,-400.0,0.00011189,2]
[361100996,1747255845066,-500.0,0.00011189,2]
[361100997,1747255845076,-1133.22,0.00011189,2]
[361100998,1747255845085,-450.98,0.00011189,2]
[361100999,1747255845094,-400.0,0.00011189,2]
[361101000,1747255845103,-400.0,0.00011189,2]
[361101001,1747255845112,-400.0,0.00011189,2]
[361101002,1747255845121,-400.0,0.00011189,2]
[361101003,1747255845130,-331.26297631,0.00011189,2]
[361101004,1747255845139,-722.71,0.00011189,2]
[361101005,1747255845148,-400.0,0.00011189,2]
[361101006,1747255845157,-250.0,0.00011189,2]
[361101007,1747255845167,-500.0,0.00011189,2]
[361101008,1747255845176,-500.0,0.00011189,2]
[361101009,1747255845185,-154.13641206,0.00011189,2]
[361101010,1747255845194,-400.0,0.00011189,2]
[361101011,1747255845203,-225.24,0.00011189,2]
[361101012,1747255845213,-1232.76,0.00011189,2]
[361101013,1747255845222,-400.0,0.00011189,2]
[361101014,1747255845231,-400.0,0.00011189,2]
[361101015,1747255845240,-1307.08,0.00011189,2]
[361101016,1747255845250,-500.0,0.00011189,2]
[361101017,1747255845259,-500.0,0.00011189,2]
[361101018,1747255845268,-500.0,0.00011189,2]
[361101019,1747255845277,-400.0,0.00011189,2]
[361101020,1747255845286,-1138.31,0.00011189,2]
[361101021,1747255845295,-500.0,0.00011189,2]
[361101022,1747255845303,-2338.1,0.00011189,2]
[361101023,1747255845313,-650.7,0.00011189,2]
[361101024,1747255845322,-400.0,0.00011189,2]
[361101025,1747255845331,-421.77,0.00011189,2]
[361101026,1747255845340,-400.0,0.00011189,2]
[361101027,1747255845348,-783.63,0.00011189,2]
[361101028,1747255845358,-1077.79,0.00011189,2]
[361101029,1747255845367,-500.0,0.00011189,2]
[361101030,1747255845378,-6330.82,0.00011189,2]
[361101031,1747255845387,-400.0,0.00011189,2]
[361101032,1747255845396,-400.0,0.00011189,2]
[361101033,1747255845405,-837.0,0.00011189,2]
[361101034,1747255845414,-4096.04,0.00011189,2]
[361101035,1747255845423,-513.3,0.00011189,2]
[361101036,1747255845432,-400.0,0.00011189,2]
[361101037,1747255845442,-400.0,0.00011189,2]
[361101038,1747255845451,-3536.07718313,0.00011189,2]
[361101039,1747255846440,-629.04998635,0.00011189,2]
[361101040,1747255846451,-2096.91283052,0.00011189,2]
[361101041,1747255846460,-147.62099443,0.00011189,2]
[361101042,1747255846500,-256.62900557,0.00011189,2]
[361101043,1747255846509,-829.92,0.00011189,2]
[361101044,1747255846519,-1655.47,0.00011189,2]
[361101045,1747255846530,-400.0,0.00011189,2]
[361101046,1747255846539,-1516.17,0.00011189,2]
[361101047,1747255846549,-500.0,0.00011189,2]
[361101048,1747255846558,-400.0,0.00011189,2]
[361101049,1747255846568,-400.0,0.00011189,2]
[361101050,1747255846577,-1754.38,0.00011189,2]
[361101051,1747255846588,-400.0,0.00011189,2]
[361101052,1747255846597,-509.68,0.00011189,2]
[361101053,1747255846607,-400.0,0.00011189,2]
[361101054,1747255846616,-400.0,0.00011189,2]
[361101055,1747255846625,-400.0,0.00011189,2]
[361101056,1747255846635,-400.0,0.00011189,2]
[361101058,1747255846644,-500.0,0.00011189,2]
[361101060,1747255846653,-400.0,0.00011189,2]
[361101061,1747255846663,-285.13427178,0.00011189,2]
[361101062,1747255846673,-724.67,0.00011189,2]
[361101063,1747255846682,-560.24,0.00011189,2]
[361101064,1747255846692,-400.0,0.00011189,2]
[361101065,1747255846702,-400.0,0.00011189,2]
[361101066,1747255846711,-454.14,0.00011189,2]
[361101067,1747255846720,-910.72,0.00011189,2]
[361101068,1747255846730,-400.0,0.00011189,2]
[361101069,1747255846739,-500.0,0.00011189,2]
[361101070,1747255846749,-400.0,0.00011189,2]
[361101073,1747255846759,-400.0,0.00011189,2]
[361101074,1747255846768,-400.0,0.00011189,2]
[361101075,1747255846778,-400.0,0.00011189,2]
[361101076,1747255846787,-400.0,0.00011189,2]
[361101077,1747255846798,-400.0,0.00011189,2]
[361101078,1747255846807,-2330.77,0.00011189,2]
[361101079,1747255846816,-500.0,0.00011189,2]
[361101080,1747255846826,-949.88,0.00011189,2]
[361101081,1747255846834,-500.0,0.00011189,2]
[361101082,1747255846845,-596.18,0.00011189,2]
[361101083,1747255846854,-465.07593557,0.00011189,2]
[361101084,1747255846863,-400.0,0.00011189,2]
[361101085,1747255846872,-480.16,0.00011189,2]
[361101086,1747255846881,-400.0,0.00011189,2]
[361101087,1747255846892,-639.77,0.00011189,2]
[361101088,1747255846901,-166.15987374,0.00011189,2]
[361101089,1747255846951,-233.84012626,0.00011189,2]
[361101090,1747255846961,-947.91,0.00011189,2]
[361101091,1747255846970,-796.2,0.00011189,2]
[361101092,1747255846980,-520.12,0.00011189,2]
[361101093,1747255846989,-400.0,0.00011189,2]
[361101094,1747255846998,-400.0,0.00011189,2]
[361101095,1747255847008,-451.77,0.00011189,2]
[361101096,1747255847017,-3965.42,0.00011189,2]
[361101097,1747255847026,-400.0,0.00011189,2]
[361101098,1747255847036,-575.7,0.00011189,2]
[361101099,1747255847045,-500.0,0.00011189,2]
[361101100,1747255847055,-400.0,0.00011189,2]
[361101101,1747255847064,-400.0,0.00011189,2]
[361101102,1747255847073,-400.0,0.00011189,2]
[361101103,1747255847082,-4647.28,0.00011189,2]
[361101104,1747255847093,-500.0,0.00011189,2]
[361101105,1747255847102,-500.0,0.00011189,2]
[361101106,1747255847111,-400.0,0.00011189,2]
[361101107,1747255847120,-450.0,0.00011189,2]
[361101108,1747255847129,-586.74,0.00011189,2]
[361101109,1747255847138,-557.35,0.00011189,2]
[361101110,1747255847147,-400.0,0.00011189,2]
[361101111,1747255847156,-16661.09,0.00011189,2]
[361101112,1747255847165,-1558.16,0.00011189,2]
[361101113,1747255847175,-1055.2,0.00011189,2]
[361101114,1747255847185,-400.0,0.00011189,2]
[361101115,1747255847196,-702.74,0.00011189,2]
[361101116,1747255847205,-400.0,0.00011189,2]
[361101117,1747255847215,-582.23,0.00011189,2]
[361101118,1747255847224,-3616.91,0.00011189,2]
[361101119,1747255847233,-400.0,0.00011189,2]
[361101120,1747255847242,-400.0,0.00011189,2]
[361101121,1747255847251,-1130.69,0.00011189,2]